bitfinex-derivatives/quotes_ETHF0:USTF0_20250926
["timestamp","ask_amount","ask_price","bid_price","bid_amount"]
[1758907157964,0.84086388,3993.7,3993.6,4.43054]
[1758907159366,0.09386388,3993.7,3993.6,4.43054]
[1758907160474,0.09386388,3993.7,3993.6,4.68654]
[1758907161369,0.30636388,3993.7,3993.6,4.43054]
[1758907161571,0.09386388,3993.7,3993.6,4.68654]
[1758907164775,2.06475401,3993.7,3993.6,4.68654]
[1758907165370,1.74035401,3993.7,3993.6,4.68654]
[1758907165573,0.09386388,3993.7,3993.6,4.68654]
[1758907165777,0.09386388,3993.7,3993.6,6.12053013]
[1758907166578,0.02713488,3994.3,3994.2,0.45037]
[1758907166775,3.5322,3995.2,3995.1,0.45027]
[1758907166974,3.9592,3995.2,3995.1,1.21857]
[1758907167480,0.2125,3995.2,3995.1,1.21857]
[1758907167668,0.5369,3995.2,3995.1,1.21857]
[1758907167872,0.00296282,3995.2,3995.1,2.91134143]
[1758907168177,0.00296282,3995.2,3995.1,1.4773513]
[1758907168572,0.00296282,3995.2,3995.1,6.4773513]
[1758907169173,0.00296282,3995.2,3995.1,1.4773513]
[1758907169766,0.00296282,3995.2,3995.1,1.2213513]
[1758907169970,0.53986282,3995.2,3995.1,1.4773513]
[1758907170371,0.00296282,3995.2,3995.1,1.4773513]
[1758907174176,0.53986282,3995.2,3995.1,1.4773513]
[1758907174374,2.50341968,3995.2,3995.1,1.1503513]
[1758907175179,0.2125,3994.5,3994.4,3.2078]
[1758907175385,2.62575686,3994.5,3994.4,3.65814]
[1758907175583,2.62575686,3994.5,3994.4,3.87254]
[1758907176085,2.62575686,3994.5,3994.4,0.45035]
[1758907176384,2.62575686,3994.5,3994.4,0.45317559]
[1758907178689,2.71866963,3994.5,3994.4,0.45317559]
[1758907179479,2.71866963,3994.5,3994.4,0.66757559]
[1758907180585,2.71866963,3994.5,3994.4,0.99457559]
[1758907181087,0.30541277,3994.5,3994.4,1.22147559]
[1758907181783,0.2125,3994.5,3994.4,4.42927559]
[1758907181984,0.8607467,3994.5,3994.4,4.42927559]
[1758907182186,0.9927467,3994.5,3994.4,4.10227559]
[1758907183887,0.9927467,3994.5,3994.4,4.41737559]
[1758907184387,0.8607467,3994.5,3994.4,4.41737559]
[1758907186084,0.3054467,3994.5,3994.4,4.41737559]
[1758907186291,0.0929467,3994.5,3994.4,4.41737559]
[1758907188391,0.0929467,3994.5,3994.4,9.41737559]
[1758907189292,0.00296282,3995.2,3995.1,1.20047]
[1758907189686,0.21636282,3995.2,3995.1,1.20047]
[1758907189991,0.77166282,3995.2,3995.1,1.20047]
[1758907190391,0.21636282,3995.2,3995.1,1.20047]
[1758907191590,0.00296282,3995.2,3995.1,1.20047]
[1758907192599,0.21636282,3995.2,3995.1,1.20047]
[1758907193696,0.00296282,3995.2,3995.1,1.20047]
[1758907196588,0.00296282,3995.2,3995.1,1.45647]
[1758907196988,0.21636282,3995.2,3995.1,1.20047]
[1758907197194,0.54806282,3995.2,3995.1,1.45647]
[1758907197397,0.77166282,3995.2,3995.1,1.45647]
[1758907197792,0.77166282,3995.2,3995.1,0.67317]
[1758907197997,0.2134,3994.5,3994.4,4.19897559]
[1758907198198,0.7687,3994.5,3994.4,4.66717559]
[1758907198502,0.7687,3994.5,3994.4,4.41117559]
[1758907198804,0.7687,3994.5,3994.4,4.66717559]
[1758907199501,0.7687,3994.5,3994.4,4.41117559]
[1758907199895,0.9007,3994.5,3994.4,4.41117559]
[1758907200904,0.9007,3994.5,3994.4,3.66097559]
[1758907201100,0.99816561,3994.5,3994.4,3.66097559]
[1758907201398,0.99816561,3994.5,3994.4,3.88387559]
[1758907201602,0.86616561,3994.5,3994.4,4.41117559]
[1758907203197,0.99816561,3994.5,3994.4,1.20337559]
[1758907203403,1.44850561,3994.5,3994.4,0.45317559]
[1758907203604,6.44850561,3994.5,3994.4,0.45317559]
[1758907203903,6.44850561,3994.5,3994.4,0.00282559]
[1758907204106,9.65630561,3994.5,3994.4,0.00282559]
[1758907205296,6.44850561,3994.5,3994.4,0.00282559]
[1758907205500,6.44850561,3994.5,3994.4,0.22572559]
[1758907205801,1.44850561,3994.5,3994.4,0.77542559]
[1758907206109,0.86616561,3994.5,3994.4,1.22577559]
[1758907206300,0.31086561,3994.5,3994.4,1.22577559]
[1758907206810,4.62840561,3994.5,3994.4,0.00282559]
[1758907207701,4.88440561,3994.5,3994.4,0.00282559]
[1758907208006,4.88440561,3994.5,3994.4,0.66137559]
[1758907208398,4.88440561,3994.5,3994.4,0.21102559]
[1758907208598,4.88440561,3994.5,3994.4,0.00282559]
[1758907208804,4.88440561,3994.5,3994.4,0.21102559]
[1758907208805,6.63346247,3994.5,3994.4,0.21102559]
[1758907209507,6.18312247,3994.5,3994.4,0.99887559]
[1758907209704,6.18312247,3994.5,3994.4,1.20517559]
[1758907209906,2.71932247,3994.5,3994.4,1.20517559]
[1758907210107,2.97532247,3994.5,3994.4,1.20517559]
[1758907210310,0.09746561,3994.5,3994.4,1.20517559]
[1758907211008,0.09746561,3994.5,3994.4,6.46117559]
[1758907211215,0.025,3995.0,3994.9,0.86479]
[1758907211403,0.12242635,3995.0,3994.9,1.19689]
[1758907211605,0.09742635,3995.0,3994.9,1.19689]
[1758907211800,0.09742635,3995.0,3994.5,0.3321]
[1758907211801,0.98392635,3995.0,3994.5,0.3321]
[1758907212109,1.33684,3994.5,3994.4,0.00282559]
[1758907212408,1.69026635,3994.5,3994.4,0.00282559]
[1758907212819,3.43932321,3994.5,3994.4,0.22932559]
[1758907213507,0.45043,3993.7,3993.6,0.3321]
[1758907213714,0.45043,3993.7,3993.6,0.2265]
[1758907213715,3.05661321,3993.7,3993.6,0.2265]
[1758907214209,3.05661321,3993.7,3993.6,0.767]
[1758907214410,0.32472635,3993.7,3993.6,0.767]
[1758907214598,0.09742635,3993.7,3993.6,0.76932513]
[1758907217707,0.09742635,3993.7,3993.6,6.02532513]
[1758907217912,0.025,3994.1,3994.0,1.34109]
[1758907218309,0.1205637,3994.1,3994.0,1.34109]
[1758907219108,0.0955637,3994.1,3994.0,1.34109]
[1758907219309,0.3228637,3994.1,3994.0,1.34109]
[1758907221815,0.0955637,3994.1,3994.0,1.34109]
[1758907222714,1.3056437,3994.1,3994.0,1.21739]
[1758907223115,0.8552637,3994.1,3994.0,1.21739]
[1758907223612,1.3056437,3994.1,3994.0,1.21739]
[1758907224011,1.01429,3994.0,3993.9,3.4638]
[1758907224315,1.4324537,3994.0,3993.9,3.2078]
[1758907224614,1.4324537,3994.0,3993.9,0.2265]
[1758907225022,1.43253448,3994.0,3993.9,0.2265]
[1758907225214,1.21013,3993.7,3993.6,0.22882513]
[1758907225415,1.30577448,3993.7,3993.6,1.14366513]
[1758907225616,1.30577448,3993.7,3993.6,1.47576513]
[1758907226215,1.30577448,3993.7,3993.6,1.21976513]
[1758907226515,1.30577448,3993.7,3993.6,0.76932513]
[1758907226716,1.30577448,3993.7,3993.6,0.00232513]
[1758907228213,4.51357448,3993.7,3993.6,0.00232513]
[1758907230317,4.76957448,3993.7,3993.6,0.00232513]
[1758907230619,9.93209131,3993.7,3993.6,0.00232513]
[1758907232115,9.93209131,3993.7,3992.8,3.2078]
[1758907232116,1.2102,3993.1,3993.0,0.677]
[1758907232419,0.45052,3992.9,3992.8,3.2078]
[1758907232716,1.30586448,3992.9,3992.8,3.2078]
[1758907232914,1.33706,3992.5,3992.4,3.4343]
[1758907233123,1.43270448,3992.5,3992.4,0.67979862]
[1758907233319,0.98214448,3992.5,3992.4,0.67979862]
[1758907233622,0.98214448,3992.5,3992.4,1.01189862]
[1758907233814,1.43270448,3992.5,3992.4,1.01189862]
[1758907234116,0.98214448,3992.5,3992.4,1.01189862]
[1758907235116,0.09564448,3992.5,3992.4,1.22029862]
[1758907235320,0.025,3992.8,3992.7,1.21754]
[1758907235518,0.12060778,3992.8,3992.7,1.21754]
[1758907235712,0.025,3992.8,3992.7,1.21754]
[1758907237724,0.025,3992.8,3992.7,6.21754]
[1758907238017,0.025,3992.8,3992.7,6.47354]
[1758907239419,0.025,3992.8,3992.7,1.47354]
[1758907240415,0.1268,3994.0,3992.7,1.023]
[1758907240727,0.09561023,3993.9,3993.8,1.21742]
[1758907240919,0.32291023,3993.9,3993.8,1.47342]
[1758907241113,0.09561023,3993.9,3993.8,1.47342]
[1758907242127,0.532,3994.6,3994.5,1.33894]
[1758907242315,0.62765467,3994.6,3994.5,4.54674]
[1758907242715,0.30625467,3994.6,3994.5,4.54674]
[1758907243322,0.09565467,3994.6,3994.5,4.54674]
[1758907244613,0.30625467,3994.6,3994.5,4.54674]
[1758907244818,0.62765467,3994.6,3994.5,4.54674]
[1758907245625,0.30625467,3994.6,3994.5,4.54674]
[1758907246018,0.83505467,3994.6,3994.5,4.54674]
[1758907246415,0.09565467,3994.6,3994.5,4.54674]
[1758907247030,0.62765467,3994.6,3994.5,4.54674]
[1758907247325,0.09565467,3994.6,3994.5,4.54674]
[1758907248715,0.04888627,3994.6,3994.5,4.54674]
[1758907248919,0.00296282,3995.2,3995.1,1.20427]
[1758907249121,0.00296282,3995.2,3995.1,1.46027]
[1758907249326,0.21356282,3995.2,3995.1,1.46027]
[1758907249627,0.53496282,3995.2,3995.1,1.46027]
[1758907252924,0.74236282,3995.2,3995.1,1.46027]
[1758907254730,0.74236282,3995.2,3995.1,1.20427]
[1758907255037,0.74236282,3995.2,3995.1,1.46027]
[1758907256129,0.00296282,3995.2,3995.1,1.46027]
[1758907256429,0.53496282,3995.2,3995.1,1.46027]
[1758907256635,0.74236282,3995.2,3995.1,1.46027]
[1758907259535,0.74236282,3995.2,3995.1,1.20427]
[1758907259735,0.74236282,3995.2,3995.1,1.46027]
[1758907261337,0.74236282,3995.2,3995.1,1.20427]
[1758907261838,0.74236282,3995.2,3995.1,1.46027]
[1758907263848,0.21356282,3995.2,3995.1,1.46027]
[1758907264135,0.00296282,3995.2,3995.1,1.46027]
[1758907264439,0.00296282,3995.2,3995.1,2.89264812]
[1758907265237,0.00296282,3995.2,3995.1,1.46027]
[1758907266135,0.2449,3995.9,3995.8,1.21779]
[1758907266333,0.11660426,3995.9,3995.8,4.68159]
[1758907266533,0.09160426,3995.9,3995.8,4.68159]
[1758907266730,1.89057812,3996.5,3996.4,1.21772]
[1758907266731,2.32977812,3996.5,3996.4,1.21772]
[1758907266930,2.4214138,3996.5,3996.4,1.21772]
[1758907267133,2.42463943,3996.5,3996.4,1.22094712]
[1758907271143,2.29783943,3996.5,3996.4,1.22094712]
[1758907272139,0.31476131,3996.5,3996.4,1.22094712]
[1758907272941,0.09486131,3996.5,3996.4,1.22094712]
[1758907273142,0.30756131,3996.5,3996.4,1.22094712]
[1758907273530,0.64146131,3996.5,3996.4,1.22094712]
[1758907273746,0.85156131,3996.5,3996.4,1.22094712]
[1758907274547,0.64146131,3996.5,3996.4,1.22094712]
[1758907276046,0.30756131,3996.5,3996.4,1.22094712]
[1758907277547,0.09486131,3996.5,3996.4,1.22094712]
[1758907279637,0.64146131,3996.5,3996.4,1.22094712]
[1758907279840,0.85156131,3996.5,3996.4,1.47594712]
[1758907280040,0.98796131,3996.5,3996.4,1.47594712]
[1758907280239,2.28393943,3996.5,3996.4,1.47594712]
[1758907280538,0.64146131,3996.5,3996.4,1.47594712]
[1758907282350,0.64146131,3996.5,3996.4,1.22094712]
[1758907282543,0.64146131,3996.5,3996.4,1.47594712]
[1758907283649,0.09486131,3996.5,3996.4,1.47594712]
[1758907283850,0.09486131,3996.5,3996.4,1.22094712]
[1758907284045,0.64146131,3996.5,3996.4,1.47594712]
[1758907284243,0.85156131,3996.5,3996.4,1.47594712]
[1758907286350,1.43807131,3996.5,3996.4,0.21542712]
[1758907286549,0.7567,3995.9,3995.8,3.91299]
[1758907286846,2.7308938,3995.9,3995.8,3.2078]
[1758907287051,1.34332,3995.5,3995.4,3.2078]
[1758907287253,2.4171138,3995.5,3995.4,3.65803]
[1758907287450,2.4171138,3995.5,3995.4,0.67533]
[1758907287650,2.4171138,3995.5,3995.4,0.45235737]
[1758907287961,2.4171138,3995.5,3995.4,1.21275737]
[1758907288449,0.84833568,3995.5,3995.4,1.21275737]
[1758907288652,2.4171138,3995.5,3995.4,0.00212737]
[1758907289658,5.98473568,3995.5,3995.4,0.00212737]
[1758907290457,5.98473568,3995.5,3995.4,0.45235737]
[1758907290956,6.43495568,3995.5,3995.4,0.45235737]
[1758907292650,6.43495568,3995.5,3995.4,0.00212737]
[1758907293158,6.43495568,3995.5,3995.4,0.45235737]
[1758907293552,5.98473568,3995.5,3995.4,0.45235737]
[1758907293953,6.43495568,3995.5,3995.4,0.00212737]
[1758907294257,6.43495568,3995.5,3995.4,0.45235737]
[1758907294654,6.43495568,3995.5,3995.4,0.00212737]
[1758907297348,5.98473568,3995.5,3994.6,3.2078]
[1758907297556,1.20706,3994.3,3994.2,3.2078]
[1758907297750,0.7567,3993.9,3993.8,0.2251]
[1758907297951,1.29925069,3993.9,3993.8,0.2251]
[1758907298364,1.29918881,3993.9,3993.8,0.22783543]
[1758907298753,0.84878881,3993.9,3993.8,0.67824543]
[1758907298956,0.84878707,3993.9,3993.8,4.20984543]
[1758907299261,0.7567,3993.9,3993.8,4.42134543]
[1758907299558,1.2071,3993.9,3993.8,0.22783543]
[1758907299760,1.29913579,3993.9,3993.8,0.00273543]
[1758907308266,1.29913579,3993.9,3993.8,0.45314543]
[1758907308967,1.29913579,3993.9,3993.8,0.00273543]
[1758907311264,1.29913579,3993.9,3993.8,0.45314543]
[1758907313163,1.29913579,3993.9,3993.8,0.00273543]
[1758907313866,1.29913579,3993.9,3993.8,0.98974543]
[1758907314466,1.29913579,3993.9,3993.8,1.19904543]
[1758907315365,1.55413579,3993.9,3993.8,1.19904543]
[1758907315562,1.10373579,3993.9,3993.8,1.19904543]
[1758907315876,0.09203579,3993.9,3993.8,4.40684543]
[1758907316972,0.31973579,3993.9,3993.8,4.40684543]
[1758907317166,1.29363579,3993.9,3993.8,4.40684543]
[1758907317371,0.84323579,3993.9,3993.8,4.40684543]
[1758907318266,1.29363579,3993.9,3993.8,4.40684543]
[1758907318472,1.29363579,3993.9,3993.8,0.00273543]
[1758907318768,1.29363579,3993.9,3993.8,0.45314543]
[1758907318970,1.29363579,3993.9,3993.8,0.66904543]
[1758907319472,0.09203579,3993.9,3993.8,1.19904543]
[1758907321468,0.84323579,3993.9,3993.8,1.19904543]
[1758907322069,3.04320836,3993.9,3993.8,0.87834543]
[1758907322268,3.04320836,3993.9,3993.8,0.66904543]
[1758907322969,3.04320836,3993.9,3993.8,0.21863543]
[1758907323274,1.20167,3993.3,3993.2,3.65828]
[1758907323475,1.29370579,3993.3,3993.2,3.65828]
[1758907323670,0.84323579,3993.3,3993.2,3.87418]
[1758907323973,0.84323579,3993.3,3993.2,4.40418]
[1758907324177,0.84599023,3993.3,3993.2,4.40710622]
[1758907324967,0.63939023,3993.3,3993.2,4.40710622]
[1758907325171,0.09479023,3993.3,3993.2,4.40710622]
[1758907325572,0.09479023,3993.3,3993.2,4.66210622]
[1758907325971,0.00275444,3993.3,3993.2,4.66210622]
[1758907326176,0.09479023,3993.3,3993.2,11.41167879]
[1758907326474,0.00275444,3993.3,3993.2,11.41167879]
[1758907327175,0.09479023,3993.3,3993.2,11.41167879]
[1758907327674,1.23471,3994.8,3994.0,0.1284]
[1758907327974,1.23471,3994.8,3994.7,1.21141]
[1758907327975,0.7844,3994.8,3994.7,1.21141]
[1758907328571,0.78649749,3994.8,3994.7,0.7611]
[1758907328768,0.78649749,3994.8,3994.7,0.2262]
[1758907329473,0.78649749,3994.8,3994.7,0.7611]
[1758907331978,0.78649749,3994.8,3994.7,1.21141]
[1758907333477,1.23679749,3994.8,3994.7,0.7611]
[1758907333672,1.19851,3994.7,3994.6,3.2078]
[1758907333975,0.87967,3994.2,3994.1,3.4628]
[1758907334276,1.19858,3994.1,3994.0,0.5547]
[1758907334477,0.7482,3994.1,3994.0,0.67769]
[1758907334783,1.19858,3994.1,3994.0,0.7737]
[1758907335083,1.19858,3994.1,3994.0,1.22409]
[1758907335879,1.19858,3994.1,3994.0,0.7737]
[1758907337182,1.19858,3994.1,3994.0,0.4463]
[1758907337486,1.19858,3994.1,3994.0,0.89669]
[1758907337885,1.19858,3994.1,3994.0,0.4463]
[1758907338078,0.3189,3994.1,3993.8,0.45041]
[1758907338281,0.7482,3993.9,3993.8,1.00511]
[1758907338479,0.45044,3993.6,3993.5,0.3274]
[1758907338779,1.19864,3993.6,3993.5,0.2273]
[1758907339381,1.19864,3993.6,3993.5,0.67775]
[1758907339779,0.8434603,3993.6,3993.5,1.22415]
[1758907341182,1.2939003,3993.6,3993.5,1.22415]
[1758907341478,3.2078,3994.4,3994.3,0.67766]
[1758907341783,0.3189,3994.7,3994.6,1.22402]
[1758907341784,0.98751,3994.7,3994.6,1.22402]
[1758907342276,0.98751,3994.7,3994.6,0.7737]
[1758907342482,1.19851,3994.7,3994.6,1.22402]
[1758907342682,0.7482,3994.7,3994.6,1.22402]
[1758907342885,0.4293,3994.7,3994.6,1.22402]
[1758907343181,0.7482,3994.7,3994.6,1.22402]
[1758907343885,0.2183,3994.7,3994.6,1.22402]
[1758907344082,0.66861,3994.7,3994.6,1.22402]
[1758907344288,1.19851,3994.7,3994.6,1.22402]
[1758907344785,0.7482,3994.7,3994.6,1.22402]
[1758907345091,1.19851,3994.7,3994.6,1.22402]
[1758907345288,0.45034,3994.5,3994.4,0.45034]
[1758907345581,0.7482,3994.6,3994.5,1.22403]
[1758907345984,0.2183,3994.6,3994.5,1.35183]
[1758907346379,0.47539749,3994.8,3994.7,1.22401]
[1758907346580,0.00209749,3994.8,3994.7,4.68681]
[1758907348680,0.00209749,3994.8,3994.7,11.43638257]
[1758907349990,0.8825,3996.0,3995.9,1.22388]
[1758907350485,0.7482,3996.0,3995.9,1.22388]
[1758907350987,0.00311193,3996.0,3995.9,1.22388]
[1758907351283,1.74957257,3997.1,3996.9,0.45007]
[1758907351587,0.8825,3997.0,3996.9,1.22377]
[1758907352280,0.88508246,3997.0,3996.9,1.22595812]
[1758907352475,0.75078246,3997.0,3996.9,1.22595812]
[1758907352681,0.43188246,3997.0,3996.9,1.22595812]
[1758907352879,0.75078246,3997.0,3996.9,1.22595812]
[1758907353087,0.22088246,3997.0,3996.9,1.22595812]
[1758907353582,0.00258246,3997.0,3996.9,1.22595812]
[1758907355491,0.00258246,3997.0,3996.9,1.48095812]
[1758907355687,0.025,3997.7,3997.6,0.89629]
[1758907355888,0.025,3997.7,3997.6,4.43149]
[1758907356089,0.5592,3997.9,3997.8,1.22366]
[1758907356290,0.86437796,3997.9,3997.8,1.22366]
[1758907356685,0.86734924,3997.9,3997.8,1.22366]
[1758907357193,0.77317128,3997.9,3997.8,1.22366]
[1758907359096,0.02497128,3997.9,3997.8,1.22366]
[1758907360691,0.02497128,3997.9,3997.8,1.47866]
[1758907368003,0.025,3998.6,3998.5,1.31258]
[1758907368296,0.3295,3999.0,3998.5,4.3255]
[1758907368500,0.8973,3999.0,3998.9,0.66584]
[1758907369003,0.89928595,3999.0,3998.9,0.66584]
[1758907369204,0.89928595,3999.0,3998.9,0.98014]
[1758907369802,1.34911595,3999.0,3998.9,0.216]
[1758907370003,1.34911595,3999.0,3998.9,0.66584]
[1758907370500,0.89928595,3999.0,3998.9,0.66584]
[1758907370902,1.34911595,3999.0,3998.9,0.66584]
[1758907371302,1.4408705,3999.0,3998.9,0.66584]
[1758907373006,0.55528595,3999.0,3998.9,1.18884]
[1758907373210,0.64711028,3999.0,3998.9,1.18884]
[1758907373501,0.22578595,3999.0,3998.9,1.44384]
[1758907374205,1.00511595,3999.0,3998.9,1.44384]
[1758907374395,1.00511595,3999.0,3998.9,1.18884]
[1758907374600,0.64714974,3999.0,3998.9,1.18884]
[1758907374908,1.21687,3998.6,3998.5,0.216]
[1758907375114,0.767,3998.4,3998.3,0.6659]
[1758907375316,2.73854045,3998.4,3998.3,0.216]
[1758907375616,1.21691,3998.3,3998.2,0.44992]
[1758907375818,1.30884613,3998.3,3998.2,0.44992]
[1758907376216,0.4375,3998.1,3998.0,1.23523]
[1758907376520,0.85893613,3998.1,3998.0,1.23523]
[1758907376721,0.767,3998.1,3998.0,1.18893]
[1758907376921,0.767,3998.1,3998.0,1.44393]
[1758907377219,0.85903625,3998.1,3998.0,1.44393]
[1758907379421,0.31583625,3998.1,3998.0,1.56763]
[1758907379825,0.64533625,3998.1,3998.0,1.56763]
[1758907380817,0.64564639,3998.1,3998.0,1.56763]
[1758907382219,0.42184639,3998.1,3998.0,1.56763]
[1758907382423,0.09234639,3998.1,3998.0,2.99733432]
[1758907384229,0.85934639,3998.1,3998.0,1.18893]
[1758907384416,0.85934639,3998.1,3998.0,1.44393]
[1758907386024,1.30927639,3998.1,3998.0,1.44393]
[1758907386818,0.85934639,3998.1,3998.0,1.44393]
[1758907387022,0.09234639,3998.1,3998.0,1.56983]
[1758907387421,0.09234639,3998.1,3998.0,6.56983]
[1758907388820,0.025,3998.6,3998.5,1.00609]
[1758907389023,0.11759572,3998.6,3998.5,4.79829]
[1758907389225,0.63959572,3998.6,3998.5,4.79829]
[1758907390626,0.31619572,3998.6,3998.5,4.79829]
[1758907390827,0.09259572,3998.6,3998.5,4.79829]
[1758907392523,0.09259572,3998.6,3998.5,4.54329]
[1758907392830,0.09259572,3998.6,3998.5,4.79829]
[1758907395833,0.62659572,3998.6,3998.5,4.79829]
[1758907396338,0.09259572,3998.6,3998.5,4.79829]
[1758907399936,0.62659572,3998.6,3998.5,4.79829]
[1758907400434,0.09259572,3998.6,3998.5,4.79829]
[1758907401734,0.00198595,3999.0,3998.9,0.44984]
[1758907401934,0.0945551,3999.0,3998.9,4.65814]
[1758907402632,0.8554551,3999.0,3998.9,4.65814]
[1758907403338,0.0945551,3999.0,3998.9,4.65814]
[1758907407140,5.1e-06,3999.1,3999.0,1.32023]
[1758907407639,0.534,4000.0,3999.9,1.19523]
[1758907408143,0.53623969,4000.0,3999.9,1.19742127]
[1758907408846,0.22543969,4000.0,3999.9,1.19742127]
[1758907409037,0.53623969,4000.0,3999.9,4.40522127]
[1758907410442,0.76313969,4000.0,3999.9,1.19742127]
[1758907412645,0.00223969,4000.0,3999.9,2.62647365]
[1758907413955,0.76313969,4000.0,3999.9,1.19742127]
[1758907414249,2.32579207,4000.0,3999.9,1.45242127]
[1758907414550,0.89673969,4000.0,3999.9,1.45242127]
[1758907415144,1.34644969,4000.0,3999.9,1.45242127]
[1758907415346,1.34644969,4000.0,3999.9,0.00219127]
[1758907415652,0.7609,3999.6,3999.5,0.2113]
[1758907415852,0.7609,3999.6,3999.5,0.66107]
[1758907416052,0.7609,3999.6,3999.5,0.97077]
[1758907416245,0.7609,3999.6,3999.5,1.19527]
[1758907416445,0.7609,3999.6,3999.5,1.19786584]
[1758907417748,1.21066,3999.6,3999.5,1.19786584]
[1758907418252,0.7609,3999.6,3999.5,1.19786584]
[1758907419251,0.85270047,3999.6,3999.5,1.19786584]
[1758907419452,1.30246047,3999.6,3999.5,1.19786584]
[1758907419947,1.30246047,3999.6,3999.5,0.74809584]
[1758907420155,1.30246047,3999.6,3999.5,0.00259584]
[1758907420554,0.85270047,3999.6,3999.5,1.19786584]
[1758907421748,1.30246047,3999.6,3999.5,1.19786584]
[1758907422053,0.09180047,3999.6,3999.5,1.19786584]
[1758907422351,0.09180047,3999.6,3999.5,1.32386584]
[1758907422549,0.09180047,3999.6,3999.5,0.87409584]
[1758907422747,0.85170047,3999.6,3999.5,0.45236584]
[1758907422948,0.85170047,3999.6,3999.5,0.67946584]
[1758907423148,0.85170047,3999.6,3999.5,1.20996584]
[1758907423343,0.85170047,3999.6,3999.5,1.33596584]
[1758907423546,0.09180047,3999.6,3999.5,1.33596584]
[1758907423945,0.3153418,3999.8,3999.7,0.88705]
[1758907424148,0.6378418,3999.8,3999.7,1.20735]
[1758907424750,0.0918418,3999.8,3999.7,1.20735]
[1758907425857,0.00223969,4000.0,3999.9,1.20733]
[1758907426155,0.00223969,4000.0,3999.9,4.67013]
[1758907426351,0.09183202,4000.0,3999.9,4.67013]
[1758907427257,0.00223969,4000.0,3999.9,4.67013]
[1758907427754,0.00223969,4000.0,3999.9,11.41569759]
[1758907428252,0.00223969,4000.0,3999.9,9.41513]
[1758907428756,0.00223969,4000.0,3999.9,4.66913]
[1758907429564,0.00223969,4000.0,3999.9,4.41513]
[1758907430163,0.00223969,4000.0,3999.9,4.66913]
[1758907430457,0.00223969,4000.0,3999.9,4.41513]
[1758907430662,0.00223969,4000.0,3999.9,4.66913]
[1758907432460,0.00223969,4000.0,3999.9,4.41513]
[1758907432670,0.00223969,4000.0,3999.9,4.66913]
[1758907435167,0.022,4000.3,4000.2,0.88699]
[1758907435460,0.3225,4001.1,4001.0,0.2271]
[1758907435664,0.84950677,4001.1,4001.0,1.4612]
[1758907435863,0.84950677,4001.1,4001.0,1.1409]
[1758907436260,0.8514323,4001.1,4001.0,1.4612]
[1758907439165,0.3150323,4001.1,4001.0,1.5872]
[1758907439468,0.6375323,4001.1,4001.0,1.5872]
[1758907439776,0.8514323,4001.1,4001.0,1.4612]
[1758907440263,0.6375323,4001.1,4001.0,1.5872]
[1758907440468,2.3e-06,4001.1,4001.0,6.5872]
[1758907441372,2.3e-06,4001.1,4001.0,1.5872]
[1758907441868,0.3225,4002.7,4001.0,6.7173]
[1758907442168,3.2078,4005.1,4005.0,0.57515]
[1758907442361,3.2078,4006.2,4006.1,0.3203]
[1758907442560,0.3225,4006.9,4006.4,0.3203]
[1758907442760,0.3225,4006.9,4006.0,0.4463]
[1758907442961,0.1357,4006.5,4006.1,0.262]
[1758907443272,0.1357,4008.0,4006.1,0.262]
[1758907443273,5.92726769,4011.3,4010.0,0.126]
[1758907443471,5.92726769,4011.3,4009.5,0.126]
[1758907443472,8.94095607,4010.5,4009.6,0.3203]
[1758907443672,0.19995607,4010.5,4010.2,0.3203]
[1758907443863,0.19995607,4010.5,4010.4,0.3203]
[1758907444175,1.12027,4014.4,4010.4,0.3203]
[1758907444176,0.43926909,4014.5,4012.8,0.76858]
[1758907444379,4.7817954,4012.9,4012.8,0.76858]
[1758907444564,0.43926909,4014.5,4012.6,0.7686]
[1758907444871,0.43926909,4014.5,4013.1,0.3203]
[1758907445072,0.43926909,4014.5,4013.5,0.126]
[1758907445272,3.2078,4014.3,4013.6,0.3203]
[1758907445567,3.2078,4013.7,4013.6,0.00196115]
[1758907445770,3.2078,4013.7,4013.6,0.33626115]
[1758907446070,3.5437,4016.4,4014.6,11.23418]
[1758907446272,0.3359,4016.8,4015.7,0.44795]
[1758907446567,3.2078,4017.0,4016.1,3.2078]
[1758907446873,0.00239008,4017.0,4016.8,0.44784]
[1758907447061,0.3359,4018.1,4017.3,0.44778]
[1758907447261,0.1302,4019.0,4017.3,0.44778]
[1758907447262,0.3359,4018.9,4017.8,3.2078]
[1758907447473,0.3359,4018.9,4018.0,3.2078]
[1758907447771,0.3359,4018.9,4016.6,11.19635]
[1758907447772,0.3359,4017.9,4016.7,3.2078]
[1758907447962,0.3359,4017.9,4015.6,38.948]
[1758907447963,3.2078,4016.9,4015.6,3.2078]
[1758907448164,0.3359,4015.9,4015.1,3.2078]
[1758907448365,0.1302,4016.0,4015.1,3.12681373]
[1758907448566,5.92726769,4015.3,4014.0,3.2078]
[1758907448870,0.1302,4015.5,4015.1,3.2078]
[1758907449073,3.2078,4016.7,4015.3,0.3343]
[1758907449260,3.2078,4016.7,4015.6,3.2078]
[1758907449459,9.13506769,4018.6,4016.6,0.3343]
[1758907449670,9.13506769,4018.6,4018.3,0.44766]
[1758907449671,3.5088,4018.6,4018.3,0.44766]
[1758907449878,3.2078,4019.8,4019.2,0.44756]
[1758907450170,0.00254921,4019.8,4019.7,3.65531]
[1758907450370,3.2078,4020.8,4019.7,3.5421]
[1758907450569,3.338,4020.8,4019.6,3.2078]
[1758907450781,3.2078,4020.8,4019.3,0.44755]
[1758907450964,3.2078,4020.8,4019.8,3.2078]
[1758907451165,0.44748,4020.1,4019.2,0.0022751]
[1758907451371,5.92726769,4019.4,4019.2,0.0022751]
[1758907451570,3.2078,4019.7,4019.4,0.1311]
[1758907451770,9.13506769,4019.7,4019.1,3.2078]
[1758907451968,5.92726769,4019.7,4019.4,0.1311]
[1758907452162,5.0,4019.6,4018.3,0.3087]
[1758907452371,5.0,4019.6,4016.0,44.82726769]
[1758907452372,5.92726769,4018.4,4018.2,1e-08]
[1758907452667,0.00205763,4020.1,4018.7,0.1311]
[1758907452873,3.2078,4018.8,4018.7,0.13344682]
[1758907453063,4.1068,4018.8,4018.7,0.13344682]
[1758907453270,0.80950099,4018.8,4018.7,0.13344682]
[1758907453575,3.2078,4021.9,4020.7,0.4474]
[1758907453870,0.022,4022.9,4021.5,0.1311]
[1758907453871,3.2078,4021.8,4021.5,0.1311]